bitfinex/quotes_ETHUSD_20250715
["timestamp","ask_amount","ask_price","bid_price","bid_amount"]
[1752546707336,1e-08,2966.2,2965.5,0.55]
[1752546707541,3.37132468,2966.2,2965.6,3.37199892]
[1752546707737,1e-08,2966.2,2965.9,3.37164404]
[1752546707951,1e-08,2966.2,2965.9,0.674352]
[1752546708266,1e-08,2966.2,2966.1,3.37143049]
[1752546708420,1e-08,2966.2,2966.1,3.92143049]
[1752546708619,1e-08,2966.2,2966.1,13.95514479]
[1752546708856,1e-08,2966.2,2966.1,13.92143049]
[1752546709061,1e-08,2966.2,2966.1,15.6507274]
[1752546709760,1e-08,2966.2,2965.9,4.76]
[1752546710063,1e-08,2966.2,2966.1,3.53943049]
[1752546710263,1e-08,2966.2,2966.1,0.168]
[1752546710451,1e-08,2966.2,2966.1,3.53943049]
[1752546710645,1e-08,2966.2,2966.1,4.08943049]
[1752546710862,1e-08,2966.2,2966.1,6.10374152]
[1752546711571,1e-08,2966.2,2966.1,16.10374152]
[1752546711768,1e-08,2966.2,2966.1,16.07002722]
[1752546713092,1e-08,2966.2,2966.1,20.83002722]
[1752546713978,0.81850001,2966.2,2964.9,0.7831]
[1752546714161,0.81850001,2966.2,2965.4,3.37215127]
[1752546714354,0.81850001,2966.2,2965.1,3.37254385]
[1752546714550,0.81850001,2966.2,2965.2,3.37243159]
[1752546714879,3.37146055,2966.1,2965.4,3.37214634]
[1752546715203,0.81850001,2966.2,2965.8,3.37171228]
[1752546715483,0.81850001,2966.2,2965.6,3.37199892]
[1752546715484,4.18987511,2966.2,2965.6,3.37192641]
[1752546715666,4.18987511,2966.2,2965.7,3.3718505]
[1752546716079,3.37153222,2966.1,2965.5,3.37204526]
[1752546716260,0.81850001,2966.2,2965.3,5.535]
[1752546716460,4.18982565,2966.2,2965.6,3.37190855]
[1752546716664,3.37155005,2966.0,2965.5,3.37207447]
[1752546716865,3.37147573,2966.1,2965.5,3.37207447]
[1752546717265,0.8313,2965.8,2964.7,0.67460699]
[1752546717465,4.13272256,2964.7,2964.6,0.002]
[1752546717774,0.7597,2964.7,2964.6,0.002]
[1752546718180,0.7597,2964.7,2964.6,3.37513634]
[1752546718484,0.824,2965.0,2964.9,3.37279503]
[1752546718654,8.089,2965.7,2964.9,0.67458176]
[1752546718655,0.824,2965.5,2964.9,0.67458176]
[1752546718860,10.824,2965.5,2964.6,0.002]
[1752546719070,3.37222634,2965.4,2964.6,3.37510239]
[1752546719292,14.19618115,2965.5,2964.8,3.37288002]
[1752546719498,10.824,2965.5,2964.6,0.002]
[1752546719675,0.824,2965.5,2964.6,10.552]
[1752546719875,0.824,2965.5,2965.1,3.37249931]
[1752546720076,0.824,2965.5,2964.6,3.37509952]
[1752546720290,0.824,2965.5,2964.7,0.03373022]
[1752546720492,3.37257486,2965.1,2964.6,0.002]
[1752546720692,0.8169,2965.0,2964.7,3.3729669]
[1752546721008,3.37302256,2964.7,2964.6,0.002]
[1752546721301,9.69742256,2964.7,2964.6,0.002]
[1752546721677,9.69742256,2964.7,2963.5,0.002]
[1752546721678,0.8143,2964.6,2963.5,0.002]
[1752546721866,0.8143,2963.7,2963.5,0.002]
[1752546722300,0.7823,2964.4,2963.5,0.002]
[1752546722506,3.37382113,2964.0,2963.5,0.002]
[1752546722718,3.37357235,2964.3,2963.5,0.002]
[1752546722894,3.37357235,2964.3,2963.7,3.37409314]
[1752546723070,0.7823,2964.4,2963.7,0.0337416]
[1752546723409,0.7823,2964.4,2963.9,3.37389653]
[1752546723705,3.37355463,2964.3,2963.7,3.37411572]
[1752546723895,3.37355463,2964.3,2963.9,0.168]
[1752546724091,0.7823,2964.4,2963.9,0.168]
[1752546724602,0.7823,2964.4,2963.9,3.54189653]
[1752546724812,0.7823,2964.4,2964.3,3.37347771]
[1752546725108,0.7823,2964.4,2964.1,0.168]
[1752546725292,0.7823,2964.4,2964.3,3.37347771]
[1752546725617,0.7833,2964.8,2964.6,3.37303628]
[1752546725770,0.7833,2964.8,2964.3,0.168]
[1752546725976,0.8277,2965.6,2965.0,3.37259441]
[1752546726178,0.168,2965.4,2964.7,0.168]
[1752546726511,0.8277,2965.6,2965.1,0.168]
[1752546726713,0.8277,2965.6,2965.2,3.37245379]
[1752546726897,0.8277,2965.6,2965.3,3.37232212]
[1752546727107,0.8277,2965.6,2965.1,0.168]
[1752546727287,0.8277,2965.6,2965.5,3.37211262]
[1752546727487,0.8277,2965.6,2965.5,3.54011262]
[1752546728011,2.20459547,2965.6,2965.5,0.168]
[1752546728315,0.8277,2965.6,2965.2,0.168]
[1752546728617,0.8277,2965.6,2965.5,3.37211262]
[1752546728907,0.8277,2965.6,2965.4,0.168]
[1752546729076,0.8277,2965.6,2965.4,3.5401748]
[1752546729621,0.8277,2965.6,2965.4,0.168]
[1752546729919,0.8277,2965.6,2965.4,3.54018008]
[1752546730277,0.8277,2965.6,2965.5,3.37211262]
[1752546730777,0.8277,2965.6,2965.4,0.168]
[1752546731341,0.8277,2965.6,2965.4,3.54019753]
[1752546731626,0.8277,2965.6,2965.2,0.168]
[1752546731930,0.8277,2965.6,2965.3,3.37226251]
[1752546732128,0.8277,2965.6,2965.5,3.37211262]
[1752546732432,5.531,2965.6,2965.5,3.37211262]
[1752546732640,0.7761,2966.0,2965.8,3.37177152]
[1752546732817,0.7761,2966.0,2965.9,3.37165784]
[1752546732981,5.531,2966.1,2966.0,3.37154416]
[1752546733327,1e-08,2966.2,2966.1,3.37143049]
[1752546733682,1e-08,2966.2,2966.1,14.64624226]
[1752546733919,1e-08,2966.2,2966.1,14.61252796]
[1752546734303,1e-08,2966.8,2966.6,3.92086226]
[1752546734507,1e-08,2966.8,2966.7,13.95445612]
[1752546734735,1e-08,2966.8,2966.7,14.86774864]
[1752546734907,1e-08,2966.8,2966.7,16.69160973]
[1752546735103,0.8122,2967.7,2967.1,3.37029422]
[1752546735303,5.529,2967.8,2967.1,3.53829422]
[1752546735535,13.623,2967.9,2967.1,4.08829422]
[1752546736040,0.001,2967.9,2967.3,3.92006706]
[1752546736196,0.001,2967.9,2967.3,17.04000357]
[1752546736398,0.001,2967.9,2967.3,17.1743029]
[1752546737324,0.001,2967.9,2967.3,13.53806706]
[1752546737759,1e-08,2967.4,2967.3,14.86406706]
[1752546737898,0.001,2967.9,2967.3,14.86406706]
[1752546737899,1e-08,2967.9,2967.8,14.71309929]
[1752546738245,0.001,2969.6,2969.0,3.36813742]
[1752546738544,0.001,2969.6,2968.6,0.7936]
[1752546738703,3.36769655,2969.4,2968.8,3.36836004]
[1752546738905,0.001,2969.6,2969.0,3.36813742]
[1752546739500,3.36786338,2969.3,2968.5,10.0]
[1752546739695,0.33788634,2969.1,2968.8,3.36831731]
[1752546739932,0.33788634,2969.1,2968.5,10.0]
[1752546739933,0.001,2969.1,2968.5,10.0]
[1752546740243,0.4709,2969.0,2968.8,3.36829114]
[1752546740404,0.4709,2969.0,2968.9,3.40193336]
[1752546740605,0.001,2969.1,2969.0,3.36813742]
[1752546741609,0.001,2969.1,2969.0,13.95181879]
[1752546741808,0.001,2969.1,2969.0,17.38426966]
[1752546742309,0.001,2969.1,2969.0,17.81726966]
[1752546742931,0.001,2969.1,2969.0,0.983]
[1752546743208,0.001,2969.1,2969.0,3.80113742]
[1752546743604,0.001,2969.1,2969.0,4.38481879]
[1752546744042,0.001,2969.6,2969.0,4.38481879]
[1752546744043,0.001,2969.6,2969.5,3.36757029]
[1752546744249,0.001,2969.6,2969.5,8.88857029]
[1752546744462,0.001,2969.6,2969.5,9.32157029]
[1752546744871,0.001,2969.6,2969.5,0.433]
[1752546745008,0.001,2969.6,2969.3,5.521]
[1752546745207,0.001,2969.6,2969.4,3.3676837]
[1752546745434,0.001,2969.6,2969.3,9.32175008]
[1752546745747,0.001,2969.6,2969.3,5.954]
[1752546745964,0.33782472,2969.6,2969.1,3.3679225]
[1752546746254,0.001,2969.6,2969.5,3.36757029]
[1752546746475,0.001,2969.6,2969.5,3.83424599]
[1752546747112,0.8168,2970.9,2969.7,0.55]
[1752546747473,0.8168,2970.9,2970.0,0.55]
[1752546747628,0.8168,2970.9,2970.1,0.55]
[1752546747813,3.36620998,2970.7,2970.6,0.168]
[1752546748154,0.8168,2970.9,2970.6,3.36625568]
[1752546748351,0.8168,2970.9,2970.6,0.168]
[1752546748512,4.18288412,2970.9,2970.6,0.168]
[1752546748709,3.3663233,2970.6,2970.5,0.168]
[1752546749098,0.8092,2969.4,2969.2,3.36786178]
[1752546749266,0.8092,2969.4,2969.3,0.168]
[1752546750047,4.13057423,2969.7,2969.3,0.168]
[1752546750242,3.3676837,2969.4,2969.3,0.168]
[1752546750443,3.3676837,2969.4,2968.7,3.36840917]
[1752546750656,3.53560482,2969.5,2969.0,0.168]
[1752546750858,3.75750108,2969.4,2969.0,0.168]
[1752546751095,0.8295,2969.1,2968.0,0.7686]
[1752546751387,3.3687106,2968.5,2968.3,0.168]
[1752546751759,3.36881821,2968.4,2968.3,0.168]
[1752546751958,0.168,2968.6,2968.1,0.168]
[1752546752144,0.7793,2968.7,2968.3,0.168]
[1752546752368,0.7793,2968.7,2968.1,0.03369158]
[1752546752569,4.14732575,2969.1,2968.6,0.168]
[1752546752807,2.23728841,2969.1,2968.6,0.168]
[1752546752958,0.7793,2969.1,2968.6,0.168]
[1752546753157,0.7793,2969.1,2968.9,0.168]
[1752546753345,0.7793,2969.3,2968.9,0.168]
[1752546753546,0.4709,2969.2,2968.9,0.168]
[1752546753773,3.36809051,2969.1,2968.7,0.168]
[1752546753970,0.84472,2969.2,2968.9,3.36824638]
[1752546754192,0.7793,2969.3,2968.8,0.03368364]
[1752546754404,0.7793,2969.7,2969.1,0.168]
[1752546754702,0.7793,2969.7,2969.2,0.0336791]
[1752546754845,0.7793,2969.7,2969.6,0.168]
[1752546755358,4.14619594,2970.1,2969.6,0.601]
[1752546755597,14.14619594,2970.1,2969.6,0.601]
[1752546755796,14.14619594,2970.1,2969.8,0.168]
[1752546755947,0.7793,2970.1,2969.8,0.168]
[1752546756760,4.14623794,2970.1,2969.8,0.168]
[1752546757094,0.7793,2970.1,2969.8,0.168]
[1752546757892,5.516,2970.0,2969.8,0.168]
[1752546758096,0.7793,2970.1,2969.8,0.168]
[1752546758284,5.515,2970.0,2969.8,0.168]
[1752546758482,5.515,2970.0,2969.6,3.36743138]
[1752546758792,5.515,2970.0,2969.9,0.168]
[1752546759469,5.515,2970.0,2969.2,10.0]
[1752546759793,8.88207424,2970.0,2969.7,0.168]
[1752546759983,5.515,2970.0,2969.7,0.168]
[1752546760310,0.001,2970.8,2969.8,9.2189157]
[1752546760495,0.001,2970.8,2970.6,3.36632048]
[1752546760695,0.001,2970.8,2970.7,3.36620998]
[1752546760881,0.001,2970.8,2970.7,3.86557207]
[1752546761396,0.001,2970.8,2970.3,10.0]
[1752546761599,0.001,2970.8,2970.7,3.36620998]
[1752546761897,0.001,2970.8,2970.3,0.4657]
[1752546762102,0.001,2970.8,2970.7,3.36620998]
[1752546762475,0.001,2970.8,2970.7,3.86557207]
[1752546763163,0.001,2970.8,2970.7,3.39987207]
[1752546763413,0.001,2970.8,2970.4,3.36649151]
[1752546763617,0.001,2970.8,2970.1,10.0]
[1752546763767,8.87820998,2970.7,2969.7,10.0]
[1752546764112,8.87820998,2970.7,2969.5,5.512]
[1752546764113,5.512,2970.7,2970.1,3.36680998]
[1752546764308,5.512,2970.7,2969.8,1.0]
[1752546764468,3.36710219,2970.0,2968.5,0.7687]
[1752546764673,5.512,2970.1,2968.6,5.9777]
[1752546764900,5.512,2970.1,2969.0,0.55]
[1752546765071,3.36693987,2970.1,2969.5,3.36749643]
[1752546765273,3.36693987,2970.1,2969.1,1.2344]
[1752546765274,5.512,2970.1,2969.1,1.2344]
[1752546765612,3.36681854,2970.2,2969.6,3.36738939]
[1752546765912,5.512,2970.1,2969.6,3.36738939]
[1752546766208,5.512,2970.1,2969.9,3.36705171]
[1752546766507,5.511,2970.2,2969.9,3.36705171]
[1752546767005,5.511,2970.2,2969.4,3.36758422]
[1752546767212,3.36708442,2970.0,2969.5,3.36756733]
[1752546767513,3.36712004,2969.9,2969.3,3.36770347]
[1752546767806,3.36712004,2969.9,2969.2,3.36789578]
[1752546768032,3.36712004,2969.9,2969.2,4.78155536]
[1752546768329,5.511,2970.2,2969.2,1.41365958]
[1752546768502,8.8778553,2970.2,2969.5,3.36746753]
[1752546768702,3.36690754,2970.1,2969.5,3.36752403]
[1752546769106,5.511,2970.2,2969.7,3.36733958]
[1752546769302,5.9521,2970.2,2969.3,0.03367797]
[1752546769505,5.9521,2970.2,2969.7,3.36732923]
[1752546769753,5.9521,2970.2,2969.8,3.3671749]
[1752546769953,5.9521,2970.2,2969.7,3.36730468]
[1752546770109,0.4411,2970.1,2969.9,3.36710958]
[1752546770305,0.168,2970.2,2969.7,0.168]
[1752546770654,5.51,2970.1,2970.0,3.36700336]
[1752546771206,0.8056,2970.5,2970.0,0.84141129]
[1752546771404,5.51,2970.6,2970.4,3.36654995]
[1752546771633,5.51,2970.6,2970.5,3.36643662]
[1752546771836,8.8598,2970.9,2970.7,3.36620998]
[1752546772037,5.511,2970.8,2970.7,3.36620998]
[1752546772530,0.001,2970.8,2970.7,3.53420998]
[1752546772937,0.001,2970.8,2970.7,4.68996267]
[1752546773235,0.001,2970.8,2970.7,5.03717178]
[1752546774234,0.001,2970.8,2970.7,4.53780969]
[1752546774732,0.001,2970.8,2970.7,4.53777421]
[1752546774932,0.001,2970.8,2970.7,0.48151154]
[1752546776637,0.001,2970.8,2970.7,3.84772152]
[1752546777025,0.001,2970.8,2970.7,3.84763749]
[1752546777545,0.001,2970.8,2970.7,4.31333749]
[1752546777930,0.001,2971.7,2971.6,3.36519046]
[1752546778130,0.001,2971.7,2971.6,3.67861797]
[1752546779056,0.4421,2971.7,2971.6,0.31342751]
[1752546779231,20.07697722,2971.7,2971.6,0.31342751]
[1752546779817,20.07597722,2971.7,2971.6,0.31342751]
[1752546780674,20.07597722,2971.7,2969.0,3.36808859]
[1752546780675,0.8229,2970.6,2969.3,0.7564]
[1752546780825,3.36738987,2969.7,2969.1,3.36793998]
[1752546781022,5.506,2969.6,2968.9,4.12464334]
[1752546781253,5.506,2969.6,2969.0,3.36813742]
[1752546781422,5.506,2969.6,2968.6,0.4657]
[1752546781847,8.87358109,2969.5,2968.9,3.36821535]
[1752546782069,8.87358109,2969.5,2969.0,0.33682154]
[1752546782223,3.36749387,2969.6,2969.0,3.70491173]
[1752546782438,5.9461,2969.5,2968.0,0.7563]
[1752546782639,0.8285,2969.0,2968.2,0.4657]
[1752546782830,5.505,2968.9,2968.3,3.36884109]
[1752546783036,5.505,2968.9,2968.4,10.0]
[1752546783230,3.80954125,2968.8,2968.1,3.36910948]
[1752546783431,3.80954125,2968.8,2968.3,10.0]
[1752546783735,0.4411,2968.7,2968.2,0.41253569]
[1752546783935,0.4411,2968.6,2968.0,3.36917212]
[1752546784257,0.59461,2968.7,2968.0,3.36917212]
[1752546784258,3.36855867,2968.7,2968.0,3.36917212]
[1752546784457,3.36855867,2968.7,2967.8,3.83518116]
[1752546784458,3.36847997,2968.7,2967.9,3.36938576]
[1752546784631,3.36841009,2968.8,2968.1,3.36909113]
[1752546784832,3.36850869,2968.7,2968.0,3.36923092]
[1752546785032,3.36859746,2968.6,2968.0,4.08967298]
[1752546785357,3.36836432,2968.8,2968.1,3.36908974]
[1752546785561,3.36836432,2968.8,2968.2,3.36903633]
[1752546785757,3.36836432,2968.8,2968.1,3.36911419]
[1752546785961,0.8285,2969.0,2968.1,3.36911419]
[1752546786178,6.3345,2969.0,2968.2,0.49939045]
[1752546786382,3.36833561,2968.9,2967.8,1.0157]
[1752546786546,3.36854799,2968.7,2967.8,0.4657]
[1752546786760,3.36854799,2968.7,2968.1,3.36908227]
[1752546787070,6.7134,2969.0,2968.1,3.36908227]
[1752546787071,3.3683946,2968.8,2968.1,3.36908227]
[1752546787371,3.36838644,2968.8,2968.0,0.4657]
[1752546787576,5.506,2968.7,2968.0,3.83492441]
[1752546787779,3.36866724,2968.6,2968.0,3.36922441]
[1752546787974,3.36866724,2968.6,2967.5,10.0]
[1752546787975,18.5959157,2968.6,2967.4,0.002]
[1752546788178,3.36906796,2968.2,2967.7,0.168]
[1752546788479,0.7825,2967.9,2967.7,0.168]
[1752546788634,0.7825,2967.9,2967.4,0.002]
[1752546788635,0.3789,2967.8,2967.4,0.002]
[1752546788980,0.168,2967.7,2967.4,0.002]
[1752546789148,5.506,2967.6,2967.4,0.17]
[1752546789331,0.168,2967.9,2967.4,0.17]
[1752546789535,5.506,2967.8,2967.4,3.53995067]
[1752546789743,5.506,2967.7,2967.5,0.4657]
[1752546790036,0.168,2968.2,2967.9,3.36930904]
[1752546790230,5.506,2968.1,2967.8,3.36948523]
[1752546790446,5.506,2968.1,2967.9,0.168]
[1752546790846,0.3789,2968.0,2967.4,0.002]
[1752546791053,0.3789,2968.0,2967.5,0.168]
[1752546791247,3.36946958,2967.9,2967.5,0.168]
[1752546791458,0.168,2968.1,2967.5,0.168]
[1752546791754,0.3789,2968.2,2967.7,0.168]
[1752546791755,5.505,2968.0,2967.7,0.168]
[1752546791989,0.7682,2968.4,2968.3,3.36893171]
[1752546792286,0.7682,2968.4,2968.3,3.88243276]
[1752546792287,5.505,2968.4,2968.3,3.88243276]
[1752546792453,0.9339,2968.8,2968.4,3.36873643]
[1752546792657,0.7659,2969.4,2968.5,3.36870473]
[1752546792995,5.505,2969.4,2969.2,3.53590886]
[1752546793195,5.505,2969.4,2969.2,0.168]
[1752546793700,5.506,2969.3,2969.2,3.53591054]
[1752546794104,0.168,2969.7,2969.6,3.36745689]
[1752546794320,0.168,2969.7,2969.4,3.3676837]
[1752546794321,5.505,2969.7,2969.4,3.3676837]
[1752546794489,5.505,2969.7,2969.5,3.53550345]
[1752546794692,5.505,2969.7,2969.5,0.168]
[1752546795693,5.505,2969.7,2969.5,3.53553216]
[1752546796234,0.7659,2970.0,2969.5,0.168]
[1752546796235,5.505,2969.6,2969.5,0.168]
[1752546796416,0.7659,2970.0,2969.5,3.53557029]
[1752546796615,5.504,2969.9,2969.5,3.53557029]
[1752546796819,5.504,2969.9,2969.5,0.168]
[1752546797136,0.6398,2969.8,2969.3,0.168]
[1752546797333,4.00709699,2969.8,2969.3,0.168]
[1752546797521,3.36764714,2969.5,2969.3,0.168]
[1752546797839,0.8288,2969.3,2969.0,0.168]
[1752546798130,0.8288,2969.3,2969.2,3.36791054]
[1752546798331,0.8288,2969.3,2969.0,0.168]
[1752546798630,0.8288,2969.3,2969.0,3.53613061]
[1752546798828,0.8288,2969.3,2969.0,0.168]
[1752546799027,0.8288,2969.3,2969.0,3.53610424]
[1752546799198,0.8288,2969.3,2969.1,3.36794426]
[1752546799400,0.8288,2969.3,2969.0,3.53608354]
[1752546799598,0.8288,2969.3,2969.0,0.168]
[1752546799828,1.3006,2969.3,2969.0,0.168]
[1752546800048,0.8288,2969.3,2969.1,3.36794063]
[1752546800253,0.8288,2969.3,2969.2,3.36791054]
[1752546800532,0.8287,2969.7,2969.6,3.36745689]
[1752546800705,6.3317,2969.7,2969.6,3.36745689]
[1752546801332,1.21422546,2970.4,2969.3,3.36776576]
[1752546801555,1.21422546,2970.4,2970.3,3.3666633]
[1752546801771,5.502,2970.8,2970.6,3.3663233]
[1752546802051,5.502,2970.8,2970.7,3.36620998]
[1752546803239,6.60195,2970.8,2969.7,0.4745]
[1752546803444,6.60195,2970.8,2970.1,0.168]
[1752546803445,0.168,2970.6,2970.1,0.168]
[1752546803761,0.168,2970.6,2970.1,3.53485894]
[1752546804136,0.168,2970.6,2970.1,0.168]
[1752546804473,0.168,2970.6,2969.8,3.36719612]
[1752546804474,4.11509908,2970.6,2969.9,3.36703662]
[1752546804754,0.168,2970.5,2970.0,3.36698694]
[1752546804956,5.501,2970.4,2970.0,3.36698694]
[1752546805154,0.168,2970.5,2969.9,0.168]
[1752546805356,5.501,2970.5,2970.1,0.168]
[1752546805639,10.24276993,2970.5,2969.9,3.36707133]
[1752546805825,7.04432263,2970.5,2970.0,0.168]
[1752546806027,3.36673628,2970.3,2969.7,3.3672714]
[1752546806254,0.168,2970.3,2969.9,3.36711673]
[1752546806551,0.168,2970.3,2970.0,3.36694178]
[1752546807042,0.168,2970.3,2969.9,3.36707194]
[1752546807341,0.168,2970.3,2969.8,0.168]
[1752546807342,0.168,2970.3,2970.0,3.366964]
[1752546807762,1.15394616,2970.3,2969.8,0.168]
[1752546808056,3.53489,2970.1,2969.5,0.168]
[1752546808357,5.499,2970.0,2969.5,3.53551223]
[1752546808850,5.499,2970.0,2969.0,3.36808481]
[1752546808851,3.36752597,2969.6,2969.0,3.36808481]
[1752546809152,5.499,2969.5,2969.2,3.36785111]
[1752546809324,5.499,2969.5,2969.2,3.36789277]
[1752546809510,5.499,2969.5,2969.1,0.168]
[1752546809859,0.39094931,2970.0,2969.5,3.36757029]
[1752546810161,5.499,2969.8,2969.4,3.53563502]
[1752546810646,5.499,2969.8,2969.0,0.168]
[1752546810647,0.168,2969.5,2969.0,0.168]
[1752546810811,5.499,2969.4,2969.0,3.53608434]
[1752546811013,8.86670669,2969.4,2969.0,0.168]
[1752546811213,5.499,2969.4,2969.1,3.36796846]
[1752546811449,0.168,2969.5,2969.1,3.36791759]
[1752546811654,5.498,2969.4,2969.0,3.53608929]
[1752546811861,5.498,2969.4,2969.1,3.36795372]
[1752546812155,5.498,2969.4,2969.0,3.53613358]
[1752546812319,5.498,2969.4,2969.1,3.36802398]
[1752546812716,5.498,2969.4,2969.0,0.6425]
[1752546813052,0.168,2969.2,2968.7,0.168]
[1752546813221,0.168,2969.2,2968.8,3.36825313]
[1752546813573,0.8246,2969.0,2968.3,0.002]
[1752546813718,0.8246,2969.0,2968.5,3.36863045]
[1752546814116,0.8246,2969.0,2968.7,3.36840683]
[1752546814415,0.8246,2969.0,2968.4,3.36881821]
[1752546814615,0.8246,2969.0,2968.6,3.36852012]
[1752546814849,5.498,2968.9,2968.8,3.36836432]
[1752546815052,0.8246,2969.5,2968.8,0.4745]
[1752546815254,5.497,2969.4,2969.2,3.36789633]
[1752546815473,10.8246,2969.9,2969.2,0.4745]
[1752546815754,10.8246,2969.9,2969.4,3.36760806]
[1752546815755,5.497,2969.8,2969.4,3.36760806]
[1752546815962,5.497,2969.8,2969.5,3.36754707]
[1752546816143,5.497,2969.8,2969.4,3.36757079]
[1752546816455,8.86431183,2969.8,2969.2,3.8423166]
[1752546816868,8.86431183,2969.8,2969.2,3.84235669]
[1752546817046,8.86431183,2969.8,2968.7,8.12839734]
[1752546817047,3.36766507,2969.5,2968.7,8.12839734]
[1752546817246,5.497,2969.4,2968.9,3.36825086]
[1752546817477,5.497,2969.4,2968.7,4.76]
[1752546817659,8.86474527,2969.4,2968.8,3.36828771]
[1752546817860,3.36804327,2969.1,2968.5,5.2345]
[1752546818064,5.497,2969.0,2968.4,4.76]
[1752546818266,8.8651824,2969.0,2968.4,8.12876371]
[1752546818581,3.36825086,2968.9,2968.4,4.76]
[1752546818779,3.36836432,2968.8,2968.4,4.76]
[1752546818986,5.496,2968.7,2968.3,0.002]
[1752546819301,3.36870473,2968.5,2968.3,0.002]
[1752546819497,8.86581821,2968.4,2968.3,0.002]
[1752546819647,5.497,2968.4,2968.3,0.002]
[1752546820518,9.33761821,2968.4,2968.3,0.002]
[1752546820791,10.13781821,2968.4,2968.3,0.002]
[1752546820939,10.58120824,2968.4,2968.3,0.002]
[1752546821438,1.71539003,2968.4,2968.3,0.002]
[1752546821645,6.2962,2968.4,2968.3,0.002]
[1752546821842,0.8002,2968.4,2968.3,0.002]
[1752546822037,5.496,2968.4,2968.3,0.002]
[1752546823778,0.168,2968.9,2968.7,3.36847242]
[1752546823977,5.496,2968.8,2968.6,3.36854323]
[1752546824154,5.496,2968.8,2968.5,3.53668428]
[1752546824364,0.168,2969.0,2968.5,1.34561879]
[1752546824565,10.7537,2969.2,2968.6,0.4426]
[1752546824781,0.8235,2969.5,2968.6,0.47628591]
[1752546824953,0.168,2969.7,2969.4,3.36761375]
[1752546825157,5.496,2969.6,2969.5,3.36756897]
[1752546825406,5.495,2969.6,2969.4,0.168]
[1752546825610,0.4652,2969.5,2969.0,4.76]
[1752546825901,3.36791054,2969.2,2969.0,4.928]
[1752546826054,5.495,2969.1,2969.0,4.76]
[1752546826254,5.495,2969.1,2968.7,0.168]
[1752546826454,5.495,2969.1,2968.8,3.36836432]
[1752546826891,5.495,2969.1,2968.7,1.08865581]
[1752546827210,5.9602,2969.1,2968.4,8.12877164]
[1752546827511,5.9602,2969.1,2968.5,0.168]
[1752546827512,3.53613742,2969.0,2968.5,0.168]
[1752546827656,3.36846838,2968.8,2968.5,0.168]
[1752546827856,5.495,2968.7,2968.5,0.168]
[1752546828478,0.168,2969.0,2968.5,0.168]
[1752546828823,4.13526432,2968.8,2968.3,0.002]
[1752546829023,13.36881821,2968.4,2968.3,0.002]
[1752546829317,18.86381821,2968.4,2968.3,0.002]
[1752546829517,19.32901821,2968.4,2968.3,0.002]
[1752546830285,18.86381821,2968.4,2968.3,0.002]
[1752546830476,10.0,2968.4,2968.3,0.002]
[1752546830677,19.87761821,2968.4,2968.3,0.002]
[1752546831285,20.68141821,2968.4,2968.3,0.002]
[1752546832985,6.2978,2968.4,2968.3,0.002]
[1752546833180,5.494,2968.4,2968.3,0.002]
[1752546833411,0.7688,2968.8,2968.4,3.36873744]
[1752546833610,0.9348,2969.2,2968.5,3.81129837]
[1752546833932,8.86212048,2969.1,2968.7,0.168]
[1752546834109,5.494,2969.1,2968.7,3.53641215]
[1752546834280,5.494,2969.1,2968.7,0.168]
[1752546834618,10.0,2969.0,2968.7,0.168]
[1752546834998,10.0,2969.0,2968.8,3.36835877]
[1752546835327,0.9348,2969.2,2968.7,0.168]
[1752546835328,5.493,2968.9,2968.7,0.168]
[1752546835533,5.493,2968.8,2968.7,0.168]
[1752546836107,0.001,2969.2,2968.9,3.36823797]
[1752546836434,5.493,2969.1,2968.8,4.16974288]
[1752546836594,5.493,2969.1,2968.8,3.36834288]
[1752546836796,5.493,2969.1,2968.9,3.36823107]
[1752546837591,5.493,2969.1,2968.9,3.36821773]
[1752546837791,5.493,2969.1,2969.0,3.36813742]
[1752546837991,5.493,2969.1,2968.8,3.36834493]
[1752546837992,0.001,2969.2,2968.9,3.36825018]
[1752546838205,0.001,2969.2,2969.1,3.36802398]
[1752546838405,5.493,2969.2,2969.0,3.36808189]
[1752546838618,5.493,2969.2,2969.1,3.36802398]
[1752546838821,5.493,2969.2,2968.9,0.4426]
[1752546839022,5.493,2969.2,2968.7,8.1284451]
[1752546839225,5.493,2969.2,2968.7,4.76]
[1752546839426,5.493,2969.2,2968.7,8.12846177]
[1752546839637,5.493,2969.2,2968.8,3.36834218]
[1752546839953,5.492,2969.1,2969.0,3.3681064]
[1752546840113,0.001,2969.2,2968.9,3.81079462]
[1752546840313,5.491,2969.1,2968.7,4.76]
[1752546840653,5.491,2969.1,2968.9,3.36818975]
[1752546840856,0.001,2969.2,2968.9,3.36818975]
[1752546840857,5.491,2969.0,2968.9,4.56217627]
[1752546841056,0.001,2969.2,2969.1,4.11942398]
[1752546841255,0.001,2969.2,2969.1,9.42942398]
[1752546841418,0.001,2969.2,2969.1,19.87202398]
[1752546841617,0.001,2969.2,2969.1,22.31543199]
[1752546842175,0.001,2969.2,2969.1,21.76543199]
[1752546842316,0.001,2969.2,2969.1,22.31543199]
[1752546844434,0.001,2969.2,2969.1,9.32202398]
[1752546844625,0.001,2969.2,2969.1,8.87942398]
[1752546844822,0.001,2969.2,2969.1,4.76]
[1752546845061,5.49,2969.2,2969.1,8.12802398]
[1752546845266,5.49,2969.2,2969.1,3.36802398]
[1752546845678,0.001,2969.2,2969.1,4.4842394]
[1752546846174,0.168,2969.8,2969.7,3.3673435]
[1752546846339,0.8285,2970.4,2969.9,3.36703461]